bitfinex/quotes_SOLUSD_20260103
["timestamp","ask_amount","ask_price","bid_price","bid_amount"]
[1767451124054,0.65535543,131.89,131.86,24.92196723]
[1767451126536,0.65535543,131.89,131.87,2.82438911]
[1767451126954,0.65535543,131.89,131.87,3.49825645]
[1767451127160,0.65535543,131.91,131.88,3.49825645]
[1767451127339,8.23571671,131.92,131.89,0.67386734]
[1767451127539,8.23571671,131.92,131.88,2.82438911]
[1767451127540,0.65535543,131.91,131.88,3.49825645]
[1767451129066,0.65535543,131.91,131.88,0.67386734]
[1767451132359,8.23629351,131.91,131.88,0.67386734]
[1767451132558,0.65535543,131.9,131.87,0.67386734]
[1767451135573,0.62535541,131.9,131.87,0.67386734]
[1767451137065,7.58093808,131.91,131.87,0.67386734]
[1767451137863,0.65535543,131.9,131.86,10.06640245]
[1767451139464,0.65535543,131.9,131.87,0.67386734]
[1767451139663,0.70540557,131.89,131.86,8.26876794]
[1767451139963,7.5816715,131.9,131.87,0.68518021]
[1767451140353,8.28707707,131.9,131.87,0.68518021]
[1767451143065,0.70540557,131.9,131.87,0.68518021]
[1767451145272,8.28704445,131.9,131.87,0.68518021]
[1767451146568,0.70540557,131.91,131.88,0.68518021]
[1767451146753,8.28592139,131.92,131.89,0.68518021]
[1767451147070,0.70540557,131.93,131.89,0.68518021]
[1767451147368,0.70540557,131.93,131.9,0.68518021]
[1767451147671,0.70540557,131.93,131.91,0.68518021]
[1767451147967,0.70540557,131.93,131.89,9.39067502]
[1767451148180,0.70540557,131.93,131.9,0.68518021]
[1767451149665,8.2853791,131.93,131.9,0.68518021]
[1767451149876,10.09432648,131.93,131.9,0.68518021]
[1767451150674,8.2853791,131.93,131.9,0.68518021]
[1767451154283,0.70540557,131.92,131.89,8.26690785]
[1767451155579,0.70540557,131.92,131.9,0.68518021]
[1767451156179,0.70540557,131.92,131.89,0.68518021]
[1767451162275,0.70540557,131.91,131.88,0.68518021]
[1767451163884,0.70540557,131.91,131.88,2.49412759]
[1767451164585,0.70540557,131.91,131.88,1.80894738]
[1767451165288,0.70540557,131.91,131.88,2.49412759]
[1767451165672,0.70540557,131.91,131.88,1.80894738]
[1767451166889,0.70540557,131.91,131.87,23.91714172]
[1767451167395,0.70540557,131.91,131.88,9.39119678]
[1767451167579,0.70540557,131.92,131.89,10.0760152]
[1767451169389,0.70540557,131.96,131.92,0.68518021]
[1767451169579,0.70540557,131.96,131.93,2.49412759]
[1767451170877,0.69777609,131.98,131.95,2.52750497]
[1767451171081,0.69777609,131.98,131.95,0.71855759]
[1767451171496,0.69777609,131.98,131.94,9.38798112]
[1767451171677,0.69777609,131.97,131.94,7.57903374]
[1767451172298,0.69777609,131.97,131.94,9.38798112]
[1767451173075,0.69777609,131.97,131.94,7.57903374]
[1767451173287,0.69777609,131.97,131.94,9.38798112]
[1767451173772,0.69777609,131.97,131.95,1.80894738]
[1767451175578,0.69777609,131.97,131.95,9.38755874]
[1767451176079,0.69777609,131.97,131.95,7.57861136]
[1767451176396,10.08320644,131.99,131.95,8.29716895]
[1767451176798,0.69777609,131.98,131.95,10.10611633]
[1767451176979,8.27425906,131.99,131.96,0.71855759]
[1767451177279,8.27425906,131.99,131.96,0.6585576]
[1767451178098,0.69777609,131.98,131.95,9.38755874]
[1767451178288,8.27425906,131.99,131.95,9.38755874]
[1767451178998,0.69777609,131.98,131.95,9.38755874]
[1767451179175,0.69777609,131.98,131.95,10.10611633]
[1767451179590,8.27425906,131.99,131.95,10.10611633]
[1767451180000,0.69777609,131.98,131.95,10.10611633]
[1767451180589,0.69777609,131.98,131.95,9.38755874]
[1767451180789,0.69777609,131.98,131.95,10.10611633]
[1767451181899,0.69777609,131.98,131.95,9.38755874]
[1767451183693,1.80894738,132.0,131.95,9.38755874]
[1767451183694,7.57595429,132.0,131.95,10.10611633]
[1767451183877,0.69777609,131.99,131.96,0.71855759]
[1767451186202,0.69777609,131.99,131.95,10.10611633]
[1767451187204,0.69777609,131.99,131.96,0.71855759]
[1767451187801,8.27437258,131.99,131.96,0.71855759]
[1767451188598,8.27437258,131.99,131.95,0.71855759]
[1767451189004,0.69777609,131.98,131.95,0.71855759]
[1767451190913,8.27486568,131.98,131.95,0.71855759]
[1767451192696,0.69777609,131.98,131.95,0.71855759]
[1767451195502,0.69777609,131.98,131.96,2.82286863]
[1767451195711,0.69777609,131.98,131.95,11.11974587]
[1767451196099,22.11316549,132.01,131.97,3.54142622]
[1767451196298,22.11316549,132.01,131.97,0.71855759]
[1767451196499,0.69777609,132.0,131.97,0.71855759]
[1767451196812,0.69777609,132.0,131.96,3.54142622]
[1767451197188,0.69777609,132.0,131.97,0.71855759]
[1767451197708,0.69777609,132.0,131.96,11.11912986]
[1767451197910,0.69777609,132.0,131.97,0.71855759]
[1767451198612,0.69777609,132.0,131.96,11.11912986]
[1767451198815,0.69777609,132.0,131.97,0.71855759]
[1767451199307,0.69777609,132.0,131.96,10.40057227]
[1767451199308,0.69777609,132.0,131.96,8.29626123]
[1767451199611,0.69777609,132.0,131.96,11.11912986]
[1767451199814,0.69777609,132.0,131.97,0.69834225]
[1767451200007,0.69777609,132.0,131.97,3.52121088]
[1767451200503,0.69777609,132.0,131.96,8.27604589]
[1767451200688,2.82286863,132.02,131.98,0.69834225]
[1767451200689,11.08727338,132.02,131.98,0.69834225]
[1767451200889,0.68962568,132.01,131.98,0.67083057]
[1767451201092,0.68962568,132.01,131.97,7.5772026]
[1767451201595,0.68962568,132.0,131.96,7.57799464]
[1767451201800,0.68962568,132.0,131.95,21.7694393]
[1767451201801,0.68962568,131.99,131.95,10.40112914]
[1767451202408,3.51249431,132.0,131.95,10.40112914]
[1767451202614,0.68962568,132.0,131.95,10.40112914]
[1767451202813,8.26560715,132.0,131.96,0.69834225]
[1767451203113,0.68962568,131.99,131.96,0.69834225]
[1767451203514,0.68962568,131.99,131.96,11.09923761]
[1767451205620,0.68962568,131.99,131.96,10.40089536]
[1767451205811,8.26560715,132.0,131.97,0.69834225]
[1767451206117,0.68962568,131.99,131.96,10.40089536]
[1767451206314,0.68962568,131.99,131.96,7.57802673]
[1767451206618,0.68962568,131.99,131.96,11.09923761]
[1767451207213,0.68962568,131.99,131.96,10.40089536]
[1767451207717,8.26560715,132.0,131.97,0.69834225]
[1767451208120,0.68962568,132.0,131.97,8.27581185]
[1767451208420,0.68962568,132.01,131.98,0.69834225]
[1767451208919,0.68962568,132.01,131.97,8.24538185]
[1767451209299,3.51249431,132.01,131.98,0.69834225]
[1767451209622,0.68962568,132.0,131.97,7.5470396]
[1767451209803,0.68962568,132.0,131.97,8.24538185]
[1767451210008,0.68962568,132.0,131.97,7.5470396]
[1767451210209,0.68962568,132.0,131.97,8.24538185]
[1767451210923,0.68962568,132.01,131.98,0.69834225]
[1767451211304,0.68962568,132.01,131.97,7.5470396]
[1767451211726,0.68962568,132.01,131.98,0.69834225]
[1767451212120,0.68962568,132.01,131.97,7.5470396]
[1767451212427,0.68962568,132.01,131.97,10.36990823]
[1767451212612,0.68962568,132.01,131.97,11.06825048]
[1767451213005,11.08715092,132.02,131.98,0.69834225]
[1767451213198,0.68962568,132.02,131.99,0.69834225]
[1767451213398,24.21707638,132.03,131.97,7.5470396]
[1767451213399,0.68962568,132.03,132.0,11.09678621]
[1767451213602,0.68962568,132.04,132.01,0.69834225]
[1767451213905,0.68962568,132.04,132.01,3.48942196]
[1767451215215,0.68962568,132.04,132.0,7.57557533]
[1767451215418,0.68962568,132.04,132.01,10.39797092]
[1767451216030,0.68962568,132.04,132.01,11.09631317]
[1767451216713,0.68962568,132.04,132.0,8.27409982]
[1767451216906,0.68962568,132.04,132.0,11.09696845]
[1767451217416,0.68962568,132.03,132.0,11.09696845]
[1767451217617,0.68962568,132.03,131.99,22.09450745]
[1767451218125,0.68962568,132.03,131.99,13.82]
[1767451218126,0.68962568,132.02,131.99,13.82]
[1767451218431,0.68962568,132.02,131.98,8.27515444]
[1767451220210,0.68962568,132.02,131.98,11.09802307]
[1767451221215,0.68962568,132.02,131.99,0.69834225]
[1767451223231,0.68962568,132.01,131.98,8.27515444]
[1767451223422,0.68962568,132.01,131.98,11.09802307]
[1767451224231,0.68962568,132.01,131.98,8.27515444]
[1767451224416,0.68962568,132.01,131.98,11.09802307]
[1767451225128,7.57464336,132.02,131.99,0.69834225]
[1767451225327,0.68962568,132.01,131.97,11.09847459]
[1767451225635,0.68962568,132.0,131.96,24.22083844]
[1767451225816,0.68962568,132.0,131.96,10.40083844]
[1767451226024,0.68962568,132.0,131.97,0.69834225]
[1767451227530,0.68962568,132.0,131.96,10.40083844]
[1767451227736,0.68962568,132.0,131.97,0.69834225]
[1767451228441,0.68962568,132.0,131.96,10.40083844]
[1767451228625,0.68962568,132.0,131.97,0.69834225]
[1767451229336,0.68962568,132.0,131.96,11.09918069]
[1767451229538,0.68962568,132.0,131.97,0.69834225]
[1767451229838,0.68945726,131.99,131.96,0.68434785]
[1767451230221,0.68945726,131.99,131.95,11.08191136]
[1767451230539,0.68945726,131.99,131.96,0.68061752]
[1767451230934,0.68945726,131.99,131.96,10.40087968]
[1767451231138,0.68945726,131.99,131.96,11.0814972]
[1767451231440,8.28429775,132.0,131.96,11.0814972]
[1767451231633,0.70848993,131.99,131.96,10.40087968]
[1767451231833,0.70848993,131.99,131.96,11.0814972]
[1767451232037,8.28429775,132.0,131.97,0.68061752]
[1767451233019,8.28429775,132.0,131.96,8.25862857]
[1767451233020,0.70848993,131.99,131.96,8.25862857]
[1767451233333,0.70848993,131.99,131.96,0.68061752]
[1767451234235,0.70848993,131.99,131.95,11.08206458]
[1767451234541,0.70848993,131.99,131.96,0.68061752]
[1767451235050,0.70848993,131.99,131.95,11.08206458]
[1767451235246,0.70848993,131.99,131.95,8.25919595]
[1767451235432,0.70848993,131.99,131.96,0.68061752]
[1767451236047,0.70848993,131.99,131.95,11.08206458]
[1767451236222,0.70848993,131.99,131.96,0.68061752]
[1767451236542,0.70848993,131.99,131.96,8.2585662]
[1767451236739,8.28401656,132.01,131.97,0.68061752]
[1767451236931,0.70848993,132.0,131.97,2.82286863]
[1767451237130,0.70848993,132.0,131.97,3.50348615]
[1767451237529,0.70848993,132.0,131.97,0.68061752]
[1767451237846,0.70848993,132.0,131.96,11.08143483]
[1767451238050,0.70848993,132.0,131.97,8.25803252]
[1767451238238,0.70848993,132.0,131.96,11.08138807]
[1767451238623,0.70848993,132.0,131.96,10.40077055]
[1767451239039,0.70848993,132.0,131.96,11.08138807]
[1767451239940,0.70848993,132.0,131.97,0.68061752]
[1767451240145,0.70848993,132.0,131.96,11.08138807]
[1767451240354,0.70848993,131.99,131.96,7.57790192]
[1767451240535,0.70848993,131.99,131.97,2.82286863]
[1767451240945,0.70848993,131.99,131.96,11.08138807]
[1767451241154,0.70848993,131.99,131.96,10.40077055]
[1767451241446,8.28448851,132.0,131.96,11.08138807]
[1767451241854,0.70848993,131.99,131.96,10.40077055]
[1767451242233,0.70848993,131.99,131.96,11.08138807]
[1767451242845,0.70848993,131.99,131.96,10.40077055]
[1767451243451,0.70848993,131.99,131.96,7.57790192]
[1767451244046,0.70848993,131.99,131.96,8.25851944]
[1767451244449,0.70848993,131.99,131.96,7.57790192]
[1767451244747,0.70848993,131.99,131.96,8.25851944]
[1767451246147,0.70848993,131.99,131.96,7.57790192]
[1767451246351,0.70848993,131.99,131.96,8.25851944]
[1767451246952,0.70848993,131.99,131.96,7.57790192]
[1767451247130,0.70848993,131.99,131.96,8.25851944]
[1767451247849,0.70848993,131.99,131.96,7.57790192]
[1767451248038,0.70848993,131.99,131.96,8.25851944]
[1767451248747,0.70848993,131.99,131.96,7.57790192]
[1767451248948,0.70848993,131.99,131.96,8.25851944]
[1767451249751,0.70848993,131.99,131.96,7.57790192]
[1767451249936,0.70848993,131.99,131.96,8.25851944]
[1767451250541,0.70848993,131.99,131.96,7.57790192]
[1767451250846,0.70848993,131.98,131.94,14.50061752]
[1767451251050,0.70848993,131.97,131.93,3.50348615]
[1767451251250,0.70848993,131.97,131.93,11.08323752]
[1767451251748,0.70848993,131.97,131.94,0.68061752]
[1767451251941,8.28608137,131.97,131.94,0.68061752]
[1767451252249,8.28608137,131.97,131.93,10.40262]
[1767451252250,0.70848993,131.96,131.93,10.40262]
[1767451252446,0.70848993,131.96,131.93,11.08323752]
[1767451252637,8.28608137,131.97,131.94,0.68061752]
[1767451252838,11.10895,131.97,131.93,0.68061752]
[1767451253258,0.70848993,131.96,131.93,0.68061752]
[1767451253440,10.40046007,131.97,131.93,0.68061752]
[1767451253647,11.10895,131.97,131.93,0.68061752]
[1767451254037,0.70848993,131.96,131.93,0.68061752]
[1767451254436,10.09344105,131.97,131.93,0.68061752]
[1767451254838,0.70848993,131.96,131.93,0.68061752]
[1767451255040,0.70848993,131.96,131.92,23.88811108]
[1767451255248,0.70848993,131.96,131.93,0.68061752]
[1767451255855,0.70848993,131.96,131.92,23.88811108]
[1767451256145,10.09344105,131.97,131.93,0.68061752]
[1767451256352,10.09344105,131.97,131.93,8.26038193]
[1767451256551,0.70848993,131.96,131.93,7.57976441]
[1767451256757,10.09344105,131.97,131.93,8.26038193]
[1767451257163,0.70848993,131.96,131.93,8.26038193]
[1767451257464,0.70848993,131.96,131.93,7.57976441]
[1767451257643,10.09344105,131.97,131.94,0.68061752]
[1767451257962,0.70848993,131.96,131.93,0.68061752]
[1767451258163,0.70848993,131.96,131.92,23.88818867]
[1767451258373,10.09344105,131.97,131.93,0.68061752]
[1767451258540,0.70848993,131.96,131.93,0.68061752]
[1767451258740,0.70848993,131.96,131.92,23.88818867]
[1767451259043,0.70848993,131.96,131.93,0.68061752]
[1767451261648,0.70848993,131.96,131.92,23.91899729]
[1767451262767,0.70848993,131.96,131.93,8.2907355]
[1767451266259,2.46603127,131.98,131.94,0.71142614]
[1767451266562,0.65867159,131.97,131.94,0.71142614]
[1767451268875,2.46603127,131.97,131.94,0.71142614]
[1767451269270,10.04355446,131.97,131.94,0.71142614]
[1767451270681,0.65867159,131.97,131.93,8.2907355]
[1767451270871,0.65867159,131.97,131.94,0.71142614]
[1767451271459,0.65867159,131.97,131.93,8.2907355]
[1767451271658,2.46603127,131.97,131.94,0.71142614]
[1767451271877,1.80735968,131.97,131.94,0.71142614]
[1767451272060,2.46603127,131.97,131.94,0.71142614]
[1767451272379,0.65867159,131.97,131.94,0.71142614]
[1767451272682,10.04317905,131.98,131.95,0.71142614]
[1767451272858,0.65867159,131.97,131.94,7.57917482]
[1767451273466,10.04317905,131.98,131.95,0.71142614]
[1767451273773,0.65867159,132.01,131.95,0.71142614]
[1767451273975,101.675,132.05,131.96,0.71142614]
[1767451273976,0.65867159,131.99,131.96,0.71142614]
[1767451274360,2.46603127,131.99,131.96,0.71142614]
[1767451274563,0.65867159,131.98,131.95,14.55142614]
[1767451275158,0.65867159,131.98,131.95,22.12950167]
[1767451275359,2.46603127,131.99,131.96,0.71142614]
[1767451275787,0.65867159,131.98,131.95,22.12950167]
[1767451276162,0.65867159,131.98,131.96,7.57788043]
[1767451277083,1.80735968,131.99,131.96,8.28930657]
[1767451277487,2.46603127,131.99,131.96,7.57788043]
[1767451277680,0.65867159,131.98,131.96,7.57788043]
[1767451277983,1.80735968,131.99,131.96,8.28930657]
[1767451278185,0.65867159,131.98,131.96,7.57788043]
[1767451278581,0.65867159,131.97,131.95,7.57858502]
[1767451278901,2.46603127,131.98,131.94,8.2904492]
[1767451279188,0.65867159,131.97,131.94,7.57902306]
[1767451279390,0.65867159,132.02,131.97,0.71142614]
[1767451279564,2.46603127,132.02,131.97,1.80735968]
[1767451279965,0.65867159,132.01,131.97,1.80735968]
[1767451280174,7.57346258,132.04,131.97,1.80735968]
[1767451280390,0.65867159,132.02,131.97,1.80735968]
[1767451280578,0.65867159,132.02,131.98,7.57690559]
[1767451281500,0.65867159,132.02,131.98,7.8395467]
[1767451281791,0.65867159,132.01,131.98,7.8395467]
[1767451281973,0.65867159,132.01,131.98,7.57690559]
[1767451282672,0.65867159,132.0,131.97,7.57747973]
[1767451282874,0.65867159,132.0,131.97,7.84012084]
[1767451283771,0.65867159,132.0,131.97,7.57747973]
[1767451285990,0.65867159,131.98,131.96,13.82]
[1767451286176,0.65867159,131.98,131.94,15.62735968]
[1767451286791,0.65867159,132.01,131.97,0.26264111]
[1767451286999,0.65867159,132.01,131.98,1.80735968]
[1767451287376,0.65867159,132.01,131.98,2.07000079]
[1767451287895,0.65867159,132.01,131.99,7.57633154]
[1767451288075,1.80735968,132.03,131.99,7.57633154]
[1767451288276,2.46603127,132.03,131.99,7.57633154]
[1767451288691,0.65867159,132.02,131.99,7.57633154]
[1767451289002,0.65867159,132.03,131.99,7.83897265]
[1767451292198,0.65867159,132.03,132.0,0.26264111]
[1767451292377,0.65867159,132.03,131.99,7.57633154]
[1767451292577,0.65867159,132.03,131.99,7.83897265]
[1767451293100,0.65867159,132.03,132.0,0.26264111]
[1767451293502,10.04976545,132.04,132.0,7.83838899]
[1767451293804,10.04976545,132.04,132.0,7.19919129]
[1767451294004,10.04976545,132.04,132.0,6.19949307]
[1767451294181,10.04976545,132.04,131.99,1.80735968]
[1767451294596,0.6688081,132.03,131.99,1.80735968]
[1767451295111,0.6688081,132.02,131.98,20.74887934]
[1767451296201,8.24351758,132.02,131.98,9.38426527]
[1767451296383,9.38206916,132.02,131.98,7.57690559]
[1767451296588,10.05087726,132.02,131.98,7.5169056]
[1767451298313,0.6688081,132.01,131.98,7.5169056]
[1767451298799,0.6688081,132.01,131.97,13.82]
[1767451298800,2.47616778,132.01,131.97,13.82]
[1767451299004,0.6688081,132.0,131.96,7.57768408]
[1767451299502,0.6688081,132.0,131.96,9.38504376]
[1767451301213,0.6688081,131.99,131.96,7.57768408]
[1767451307921,10.05253183,131.99,131.95,21.39849771]
[1767451308523,0.6688081,131.98,131.95,21.39849771]
[1767451310025,0.5688081,131.97,131.94,7.57912959]
[1767451310324,9.48345343,131.98,131.95,0.69429315]
[1767451311019,0.56411001,131.97,131.94,7.57912959]
[1767451311628,0.56411001,131.97,131.94,8.27342274]
[1767451311831,9.38445343,131.98,131.95,0.69429315]
[1767451312032,9.48345343,131.98,131.95,0.69429315]
[1767451312406,0.56411001,131.97,131.94,7.57912959]
[1767451312832,9.95326153,131.98,131.95,0.69429315]
[1767451313348,0.099,131.97,131.94,7.57912959]
[1767451313903,2.37616778,131.98,131.94,8.27342274]
[1767451314234,0.099,131.97,131.94,7.57912959]
[1767451314832,0.099,131.97,131.94,8.27342274]
[1767451315026,10.96940632,131.98,131.94,8.27342274]
[1767451315211,2.82353506,131.97,131.94,0.69429315]
[1767451315412,0.099,131.97,131.93,21.39954922]
[1767451315624,0.099,131.97,131.93,22.09384237]
[1767451318230,0.099,131.97,131.93,24.91737743]
[1767451320133,0.56411001,131.96,131.93,21.39954922]
[1767451320928,0.56411001,131.96,131.93,22.10200188]
[1767451321135,10.96943008,131.98,131.94,0.70245266]
[1767451322333,2.82353506,131.97,131.94,0.70245266]
[1767451324425,8.14408474,132.01,131.96,0.70245266]
[1767451324622,8.14408474,132.01,131.97,0.70245266]
[1767451324947,10.9676198,132.01,131.97,0.70245266]
[1767451325426,10.4978117,132.01,131.97,0.70245266]
[1767451326236,0.56411001,132.0,131.97,0.70245266]
[1767451326408,0.56411001,132.0,131.97,8.27986117]
[1767451326614,3.39234316,132.01,131.97,8.27986117]
[1767451330436,2.82353506,132.01,131.98,0.70245266]
[1767451330640,2.82353506,132.0,131.98,0.70245266]
[1767451331439,10.39875865,132.01,131.98,0.70245266]
[1767451332642,10.96286866,132.01,131.98,0.70245266]
[1767451333744,2.82353506,132.0,131.98,0.70245266]
[1767451335442,2.82353506,132.0,131.98,0.61474525]
[1767451335937,8.1393336,132.01,131.98,0.61474525]
[1767451336142,2.82353506,132.0,131.98,0.61474525]
[1767451337442,10.96286866,132.01,131.98,0.61474525]
[1767451339927,10.58989707,132.0,131.96,8.28034295]
[1767451340528,7.76636201,132.0,131.96,8.28034295]
[1767451340734,10.58989707,132.0,131.96,8.28034295]
[1767451341744,7.76636201,132.0,131.97,0.70245266]
[1767451343442,10.58989707,132.0,131.97,0.70245266]
[1767451343950,10.58989707,132.0,131.96,0.70245266]
[1767451344449,7.76636201,132.0,131.96,0.70245266]
[1767451344652,10.58989707,132.0,131.96,0.70245266]
[1767451345250,0.19418037,131.98,131.95,8.28085491]
[1767451345433,3.48005057,131.99,131.96,0.70245266]
[1767451345635,0.65651551,131.99,131.96,0.70245266]
[1767451345932,8.23288923,131.99,131.95,7.57840225]
[1767451346553,0.65823277,131.98,131.95,7.57840225]
[1767451347750,0.65823277,131.98,131.95,8.28085491]
[1767451348457,0.65823277,131.98,131.96,0.70245266]
[1767451348754,0.65823277,131.98,131.95,7.57840225]
[1767451350149,0.65823277,131.98,131.94,21.39905613]
[1767451350454,0.65823277,131.98,131.94,24.22259119]
[1767451350656,0.65823277,131.98,131.94,24.89378553]
[1767451350857,0.65823277,131.98,131.95,0.67119434]
[1767451353048,3.50146564,131.99,131.96,0.67119434]
[1767451353250,3.50146564,131.99,131.95,7.5785961]
[1767451353443,0.67793058,131.98,131.95,7.5785961]
[1767451354639,0.67793058,131.98,131.94,2.82353506]
[1767451354839,0.67793058,131.98,131.93,10.40331221]
[1767451355262,0.67793058,131.98,131.94,0.16738483]
[1767451356863,0.67793058,131.98,131.94,7.74608036]
[1767451360064,0.67793058,131.98,131.95,7.74596423]
[1767451364265,0.67793058,131.98,131.94,7.74658749]
[1767451364460,0.67793058,131.98,131.94,7.57920266]
[1767451364659,0.67793058,131.98,131.94,7.74658749]
[1767451364959,0.67793058,131.98,131.94,7.57920266]
[1767451365747,0.67793058,131.98,131.94,7.74658749]
[1767451368462,3.50146564,131.98,131.94,7.74658749]
[1767451368668,0.67793058,131.97,131.94,7.74658749]
[1767451370360,0.67793058,131.96,131.91,16.81091989]
[1767451370565,0.67793058,131.96,131.92,0.16738483]
[1767451370765,0.67793058,131.96,131.93,0.16738483]
[1767451372172,0.67793058,131.96,131.93,7.7470254]
[1767451372470,0.67793058,131.96,131.93,10.57056046]
[1767451372670,0.67793058,131.97,131.93,10.57056046]
[1767451372872,0.67793058,131.97,131.94,0.16738483]
[1767451375356,0.67793058,131.97,131.94,7.7464458]
[1767451382278,0.67793058,131.97,131.93,7.74716198]
[1767451383083,0.67793058,131.97,131.94,0.16738483]
[1767451383383,8.28118005,131.98,131.94,0.16738483]
[1767451383585,0.70425378,131.97,131.93,7.74716198]
[1767451387385,0.70425378,131.96,131.92,7.74758676]
[1767451388075,0.70425378,131.96,131.92,0.16738483]
[1767451388281,0.70425378,131.96,131.92,1.97427862]
[1767451389089,0.70425378,131.96,131.92,9.55454198]
[1767451389782,0.70425378,131.96,131.92,7.74764819]
[1767451390469,0.70425378,131.96,131.92,7.58026336]
[1767451390872,0.70425378,131.96,131.92,7.74764819]
[1767451391273,0.70425378,131.96,131.92,9.55454198]
[1767451391993,0.70425378,131.96,131.92,7.74764819]
[1767451395577,0.70425378,131.96,131.92,7.58026336]
[1767451395778,0.70425378,131.95,131.91,7.74822323]
[1767451396390,0.70425378,131.95,131.91,7.5808384]
[1767451396586,0.70425378,131.95,131.91,7.74822323]
[1767451397284,0.70425378,131.95,131.92,0.16738483]
[1767451397486,0.70425378,131.95,131.91,7.74822323]
[1767451398484,0.70425378,131.95,131.91,9.55511702]
[1767451398692,0.70425378,131.95,131.91,7.74822323]
[1767451401599,0.70425378,131.95,131.91,9.55511702]
[1767451404402,0.70425378,131.95,131.92,1.97427862]
[1767451406497,0.70425378,131.97,131.93,7.74716198]
[1767451406695,8.280721,131.99,131.95,0.16738483]
[1767451406886,0.70425378,131.98,131.95,0.16738483]
[1767451407290,0.70425378,131.99,131.95,1.97427862]
[1767451408502,0.70425378,131.99,131.95,9.38506588]
[1767451410295,0.70425378,131.99,131.95,7.57817209]
[1767451410507,0.71387973,131.98,131.95,7.57817209]
[1767451415706,0.71387973,131.97,131.94,7.57902071]
[1767451415910,0.71387973,131.96,131.93,7.74680462]
[1767451416411,0.71387973,131.96,131.92,9.55450502]
[1767451420392,0.71387973,131.96,131.92,7.74761123]
[1767451420594,0.71387973,131.96,131.92,9.55450502]
[1767451421821,0.71387973,131.96,131.93,0.16738483]
[1767451423219,0.71387973,131.95,131.91,21.58808476]
[1767451423624,0.71387973,131.95,131.92,0.16738483]
[1767451423808,2.52077352,131.94,131.91,0.16738483]
[1767451424013,2.52077352,131.94,131.91,7.74820512]
[1767451424014,0.71387973,131.94,131.91,7.74820512]
[1767451429831,0.71387973,131.94,131.91,0.16738483]
[1767451430030,0.71387973,131.93,131.9,9.55534214]
[1767451430931,0.71387973,131.93,131.9,7.58106352]
[1767451431140,0.71387973,131.93,131.9,7.74844835]
[1767451432140,0.71387973,131.93,131.9,7.58106352]
[1767451432639,0.71387973,131.92,131.89,1.80689379]
[1767451432820,0.71387973,131.92,131.88,9.38904109]
[1767451433151,0.71387973,131.91,131.88,7.5821473]
[1767451435043,0.71387973,131.91,131.88,9.38904109]
[1767451435745,0.71387973,131.92,131.89,1.80689379]
[1767451436137,0.71387973,131.92,131.88,9.55642592]
[1767451438468,0.71387973,131.92,131.88,10.57506597]
[1767451439247,0.71387973,131.92,131.89,2.82553384]
[1767451440470,0.71387973,131.92,131.88,7.74953213]
[1767451440647,0.71387973,131.92,131.89,10.40733509]
[1767451441675,0.68480404,131.91,131.88,7.58241026]
[1767451442876,0.68480404,131.91,131.88,7.74979509]
[1767451443056,0.68480404,131.93,131.89,0.16738483]
[1767451443250,0.68480404,131.92,131.89,0.16738483]
[1767451443673,0.68480404,131.92,131.88,10.4079441]
[1767451444276,0.68480404,131.92,131.88,10.57532893]
[1767451445377,0.68480404,131.92,131.89,0.16738483]
[1767451445675,0.68480404,131.92,131.88,10.57532893]
[1767451446074,0.68480404,131.92,131.89,2.99291867]
[1767451446256,0.68480404,131.94,131.9,2.82553384]
[1767451447155,0.68480404,131.94,131.9,10.40703497]
[1767451448277,0.68480404,131.94,131.9,10.5744198]
[1767451449566,0.68480404,131.94,131.9,10.40703497]
[1767451449763,0.68480404,131.94,131.9,10.5744198]
[1767451450977,3.51033788,131.94,131.9,7.58150113]
[1767451451185,3.51033788,131.93,131.89,7.7492316]
[1767451451372,0.68480404,131.92,131.89,7.58184677]
[1767451451567,0.68480404,131.92,131.89,7.7492316]
[1767451451768,0.68480404,131.92,131.89,7.58184677]
[1767451451974,0.68480404,131.92,131.89,7.7492316]
[1767451452179,0.68480404,131.92,131.89,7.58184677]
[1767451452393,0.68480404,131.92,131.89,7.7492316]
[1767451453483,0.68480404,131.92,131.89,7.58184677]
[1767451454183,0.68480404,131.92,131.88,26.53927812]
[1767451454384,0.68480404,131.92,131.88,29.36481196]
[1767451454584,0.68480404,131.92,131.88,29.53219679]
[1767451454798,0.68480404,131.92,131.88,10.57556956]
[1767451454998,0.68480404,131.92,131.88,10.40818473]
[1767451456089,0.68480404,131.91,131.88,7.58265089]
[1767451456292,0.68480404,131.91,131.88,7.75003572]
[1767451458103,0.68480404,131.91,131.88,10.57556956]
[1767451458303,0.68480404,131.91,131.88,7.75003572]
[1767451458506,0.68480404,131.91,131.88,10.57556956]
[1767451461102,0.68480404,131.91,131.87,10.57607488]
[1767451461408,0.68480404,131.91,131.88,0.16738483]
[1767451463606,0.68480404,131.91,131.87,7.75054104]
[1767451464122,0.68480404,131.91,131.86,10.57654666]
[1767451464123,0.68480404,131.9,131.86,10.57654666]
[1767451464301,0.65480405,131.9,131.86,10.57654666]
[1767451466911,0.65480405,131.9,131.86,7.75101282]
[1767451467214,0.65480405,131.9,131.85,7.781761]
[1767451467215,0.68480404,131.89,131.85,7.781761]
[1767451468617,0.68480404,131.89,131.85,10.60729484]
[1767451469618,0.68480404,131.89,131.85,7.781761]